bitfinex/quotes_SOLUSD_20241214
["timestamp","ask_amount","ask_price","bid_price","bid_amount"]
[1734210002260,6.3399,215.68,215.55,9.08289758]
[1734210002462,0.86959874,215.67,215.54,0.12549]
[1734210003178,0.86959874,215.67,215.56,0.25098]
[1734210003391,7.2094567,215.68,215.6,0.12549]
[1734210004267,7.2094567,215.68,215.59,0.12549]
[1734210004667,7.2094567,215.68,215.59,9.20838758]
[1734210005897,7.2094567,215.68,215.57,9.33387758]
[1734210006104,7.2094567,215.68,215.58,9.08289758]
[1734210006297,7.2094567,215.68,215.59,0.12549]
[1734210006788,7.2094567,215.68,215.59,9.20838758]
[1734210007368,7.2094567,215.68,215.59,0.12549]
[1734210008284,7.2094567,215.68,215.59,0.25098]
[1734210008786,7.2094567,215.68,215.59,9.33387758]
[1734210009001,6.3399,215.68,215.59,9.33387758]
[1734210009368,6.3399,215.68,215.59,0.12549]
[1734210009594,7.20934213,215.68,215.57,0.25098]
[1734210009888,7.20934213,215.68,215.6,0.12549]
[1734210011279,7.20934213,215.68,215.59,0.12549]
[1734210011590,20.0,215.65,215.53,143.78289758]
[1734210011881,0.86967518,215.64,215.53,143.78289758]
[1734210012881,0.86967518,215.64,215.55,9.08289758]
[1734210014683,0.86967518,215.64,215.58,9.20838758]
[1734210014990,0.86968101,215.67,215.6,9.08289758]
[1734210015214,0.86948072,215.67,215.6,9.08289758]
[1734210015485,6.3399,215.68,215.63,9.08289758]
[1734210015689,1.6365,215.69,215.64,9.08289758]
[1734210016003,1.6365,215.69,215.63,9.08289758]
[1734210016177,1.6365,215.69,215.63,0.12549]
[1734210017664,0.86937109,215.68,215.55,12.58350002]
[1734210017887,6.3873,215.67,215.53,136.3615]
[1734210018086,20.0,215.64,215.49,6.0946]
[1734210018284,1.649,215.62,215.48,136.2595]
[1734210018493,0.86980739,215.61,215.49,9.08289758]
[1734210020011,0.86980739,215.61,215.5,0.12549]
[1734210020300,6.3873,215.6,215.49,0.12549]
[1734210020598,6.3873,215.6,215.48,0.12549]
[1734210020599,0.86990008,215.59,215.48,0.12549]
[1734210021200,0.86990008,215.59,215.48,0.25098]
[1734210021396,20.0,215.57,215.44,14.20559933]
[1734210021690,1.649,215.55,215.43,14.20559933]
[1734210021895,0.87011421,215.54,215.43,14.20559933]
[1734210022492,0.87011421,215.54,215.42,14.20559933]
[1734210023770,0.87011421,215.54,215.43,0.25098]
[1734210024372,0.87011421,215.54,215.41,14.20559933]
[1734210024373,6.16,215.53,215.41,14.20559933]
[1734210024579,0.87023431,215.52,215.4,14.20559933]
[1734210025396,20.0,215.5,215.4,14.20559933]
[1734210025599,0.87027632,215.49,215.4,14.20559933]
[1734210026387,0.87027632,215.49,215.41,0.12549]
[1734210026586,6.16,215.53,215.46,14.20559933]
[1734210026974,0.8700723,215.52,215.46,14.20559933]
[1734210028676,6.16,215.53,215.47,14.33108933]
[1734210028896,6.16,215.53,215.47,14.20559933]
[1734210029491,6.16,215.53,215.49,14.20559933]
[1734210029690,6.16,215.53,215.48,14.20559933]
[1734210031382,6.16,215.53,215.47,14.20559933]
[1734210031789,1.649,215.55,215.5,14.33108933]
[1734210031998,1.649,215.55,215.51,14.20559933]
[1734210032283,1.649,215.55,215.5,14.33108933]
[1734210033002,1.649,215.55,215.5,0.12549]
[1734210033998,1.649,215.55,215.46,34.33108933]
[1734210034204,1.649,215.55,215.47,0.12549]
[1734210034886,1.649,215.55,215.47,14.33108933]
[1734210036292,0.86999355,215.54,215.47,0.12549]
[1734210037311,0.86999355,215.54,215.48,14.20559933]
[1734210037804,1.649,215.55,215.49,14.20559933]
[1734210038187,1.649,215.55,215.5,14.20559933]
[1734210038382,6.16,215.58,215.51,14.20559933]
[1734210038597,6.16,215.58,215.52,14.20559933]
[1734210038994,6.16,215.58,215.48,0.82138991]
[1734210038995,6.16,215.58,215.51,14.20559933]
[1734210039282,7.02985343,215.58,215.51,0.12549]
[1734210040297,6.16,215.58,215.51,0.12549]
[1734210040706,6.16,215.58,215.51,14.33108933]
[1734210041708,1.5052,215.6,215.53,14.33108933]
[1734210042083,1.5052,215.6,215.53,0.12549]
[1734210042489,6.97526289,215.63,215.57,0.12549]
[1734210042706,6.1054,215.63,215.57,14.33108933]
[1734210043215,6.1054,215.63,215.57,0.12549]
[1734210044794,1.5052,215.66,215.58,14.20559933]
[1734210044995,1.5052,215.66,215.59,0.12549]
[1734210045691,1.5052,215.66,215.59,14.33108933]
[1734210045896,6.0052,215.68,215.61,0.12549]
[1734210046311,6.0052,215.68,215.62,14.20559933]
[1734210046513,6.0052,215.68,215.63,0.12549]
[1734210046814,2.0825473,215.71,215.63,0.12549]
[1734210047026,2.0825473,215.71,215.65,14.20559933]
[1734210047211,0.5676473,215.71,215.69,14.20559933]
[1734210047510,0.5676473,215.71,215.7,14.33108933]
[1734210049084,0.5676473,215.71,215.7,14.45657933]
[1734210049304,0.5676473,215.71,215.7,15.15172165]
[1734210050205,0.5676473,215.71,215.7,14.45657933]
[1734210050995,0.5676473,215.71,215.7,194.05731619]
[1734210051196,0.5676473,215.71,215.7,193.36217866]
[1734210053142,0.5676473,215.71,215.7,223.36217866]
[1734210054202,0.5676473,215.71,215.7,231.33797866]
[1734210054918,0.86869908,215.89,215.74,0.25098]
[1734210055127,0.86869908,215.89,215.8,0.12549]
[1734210056317,0.86869908,215.89,215.79,0.12549]
[1734210057620,0.86869908,215.89,215.79,14.33108933]
[1734210057920,0.5676473,215.93,215.84,14.20559933]
[1734210058118,1.43611899,215.93,215.85,0.12549]
[1734210059098,0.86850092,215.92,215.85,0.12549]
[1734210060514,0.86850092,215.92,215.81,14.20559933]
[1734210060711,0.86850092,215.92,215.81,34.33108933]
[1734210061109,0.86850092,215.92,215.82,14.33108933]
[1734210061314,0.86850092,215.92,215.83,0.12549]
[1734210061501,0.86850092,215.92,215.81,20.0]
[1734210061708,0.86850092,215.92,215.82,0.12549]
[1734210062117,0.86850092,215.92,215.78,14.20559933]
[1734210062621,0.86850092,215.92,215.79,14.20559933]
[1734210063319,0.86850092,215.92,215.81,14.20559933]
[1734210063531,0.86850092,215.92,215.82,0.12549]
[1734210063699,0.86850092,215.92,215.82,14.33108933]
[1734210064035,0.5676473,215.93,215.81,0.12549]
[1734210064036,0.86852408,215.91,215.81,0.12549]
[1734210064237,0.86852408,215.91,215.79,0.12549]
[1734210064925,0.86873497,215.9,215.79,0.12549]
[1734210065104,0.86873497,215.9,215.81,0.12549]
[1734210065315,0.86873051,215.92,215.82,14.20559933]
[1734210065523,0.86873051,215.92,215.81,0.12549]
[1734210065524,0.86873051,215.92,215.84,0.12549]
[1734210066325,0.86873051,215.92,215.78,14.20559933]
[1734210066627,0.86873051,215.92,215.79,14.33108933]
[1734210066832,0.86873051,215.92,215.81,14.20559933]
[1734210067126,0.86873051,215.92,215.77,0.94596344]
[1734210067127,0.86873051,215.92,215.82,14.20559933]
[1734210067337,0.86873051,215.92,215.83,14.20559933]
[1734210067555,0.86873051,215.92,215.84,0.12549]
[1734210070385,20.5676473,215.93,215.86,14.20559933]
[1734210070386,0.5676473,215.93,215.86,14.20559933]
[1734210070634,0.5676473,215.93,215.88,14.20559933]
[1734210071409,0.5676473,215.93,215.87,14.20559933]
[1734210071618,0.5676473,215.93,215.87,0.12549]
[1734210072029,0.5676473,215.93,215.85,14.33108933]
[1734210072220,0.5676473,215.93,215.86,0.12549]
[1734210073317,0.86849329,215.92,215.84,0.12549]
[1734210073619,0.86849329,215.92,215.84,14.33108933]
[1734210074716,0.5676473,215.93,215.85,14.20559933]
[1734210076537,0.5676473,215.93,215.86,14.20559933]
[1734210077327,0.5676473,215.93,215.87,0.12549]
[1734210077723,0.5676473,215.93,215.87,14.20559933]
[1734210077926,0.5676473,215.93,215.9,14.33108933]
[1734210078148,0.5676473,215.93,215.91,0.12549]
[1734210079424,0.5676473,215.93,215.88,14.20559933]
[1734210079621,0.5676473,215.93,215.89,14.20559933]
[1734210079925,0.5676473,215.93,215.9,14.20559933]
[1734210080328,0.5676473,215.93,215.91,14.33108933]
[1734210080540,0.5676473,215.93,215.92,14.20559933]
[1734210080739,0.5676473,215.93,215.92,14.33108933]
[1734210081242,0.5676473,215.93,215.92,14.45657933]
[1734210082574,0.5676473,215.93,215.92,97.49247294]
[1734210083069,0.5676473,215.93,215.92,53.28687361]
[1734210083434,0.5676473,215.93,215.92,29.50998961]
[1734210086262,0.5676473,215.93,215.92,27.87528961]
[1734210088243,0.5676473,215.93,215.92,21.18537237]
[1734210088622,0.5676473,215.93,215.92,0.12549]
[1734210090024,0.5676473,215.93,215.9,14.20559933]
[1734210090351,0.5676473,215.93,215.92,14.20559933]
[1734210090546,0.5676473,215.93,215.91,14.20559933]
[1734210090736,0.5676473,215.93,215.91,0.12549]
[1734210090943,0.5676473,215.93,215.92,14.20559933]
[1734210091529,0.5676473,215.93,215.91,14.20559933]
[1734210091750,0.5676473,215.93,215.91,0.12549]
[1734210092555,0.5676473,215.93,215.91,14.33108933]
[1734210095151,0.5676473,215.93,215.92,14.20559933]
[1734210095930,0.5676473,215.93,215.92,14.33108933]
[1734210099239,0.5676473,215.93,215.92,9.17969336]
[1734210100944,0.5676473,215.93,215.92,9.30518336]
[1734210101141,0.5676473,215.93,215.92,76.02767384]
[1734210101446,0.5676473,215.93,215.92,225.95961856]
[1734210101652,0.5676473,215.93,215.92,225.26529108]
[1734210102035,0.5676473,215.93,215.92,255.26529108]
[1734210103275,0.5676473,215.93,215.92,179.91709028]
[1734210103445,0.5676473,215.93,215.92,187.3645931]
[1734210103754,0.5676473,215.93,215.92,157.3645931]
[1734210104064,0.5676473,215.93,215.91,14.13742006]
[1734210104759,0.5676473,215.93,215.92,14.13742006]
[1734210105740,0.5676473,215.93,215.92,14.26291006]
[1734210108658,0.5676473,215.93,215.92,14.38840006]
[1734210108861,0.5676473,215.93,215.92,29.32979789]
[1734210109257,0.5676473,215.93,215.92,59.32979789]
[1734210110392,0.5676473,215.93,215.92,83.10668189]
[1734210110788,0.5676473,215.93,215.92,59.32979789]
[1734210111083,0.5676473,215.93,215.92,60.02429174]
[1734210112889,0.5676473,215.93,215.92,83.80117574]
[1734210113251,0.5676473,215.93,215.92,232.6385958]
[1734210113457,0.5676473,215.93,215.92,231.94410195]
[1734210114247,0.5676473,215.93,215.92,261.94410195]
[1734210114451,0.5676473,215.93,215.92,233.66926183]
[1734210114747,0.5676473,215.93,215.92,247.80668189]
[1734210115678,0.5676473,215.93,215.92,217.80668189]
[1734210115884,0.5676473,215.93,215.92,193.77881789]
[1734210116269,0.5676473,215.93,215.92,193.90430789]
[1734210116794,0.5676473,215.93,215.92,163.90430789]
[1734210117157,0.5676473,215.93,215.92,164.02979789]
[1734210119104,0.5676473,215.93,215.9,14.13742006]
[1734210119988,0.5676473,215.93,215.92,14.13742006]
[1734210120303,0.5676473,215.93,215.92,14.26291006]
[1734210120713,0.5676473,215.93,215.92,0.12549]
[1734210120879,0.5676473,215.93,215.9,14.13742006]
[1734210121073,0.5676473,215.93,215.91,14.13742006]
[1734210122499,0.5676473,215.93,215.9,14.13742006]
[1734210122882,0.5676473,215.93,215.91,14.13742006]
[1734210123281,0.5676473,215.93,215.9,14.13742006]
[1734210124403,0.5676473,215.93,215.91,0.12549]
[1734210124575,0.5676473,215.93,215.91,14.26291006]
[1734210124780,0.5676473,215.93,215.92,14.13742006]
[1734210124995,0.5676473,215.93,215.92,14.38840006]
[1734210125204,0.5676473,215.93,215.92,33.07741795]
[1734210126688,0.5676473,215.93,215.92,63.07741795]
[1734210126886,0.5676473,215.93,215.92,30.25098]
[1734210127101,0.5676473,215.93,215.92,39.17504395]
[1734210127304,0.5676473,215.93,215.92,44.27089125]
[1734210127484,0.5676473,215.93,215.92,44.39638125]
[1734210127683,0.5676473,215.93,215.92,44.27089125]
[1734210127886,0.5676473,215.93,215.91,14.14540125]
[1734210130306,0.5676473,215.93,215.92,14.14540125]
[1734210130997,0.5676473,215.93,215.91,14.27089125]
[1734210132912,0.5676473,215.93,215.91,0.12549]
[1734210133117,0.5676473,215.93,215.88,0.12549]
[1734210133292,0.5676473,215.93,215.85,14.14540125]
[1734210133610,0.5676473,215.93,215.86,14.14540125]
[1734210133993,0.5676473,215.93,215.87,14.14540125]
[1734210134392,0.5676473,215.93,215.89,14.14540125]
[1734210134997,0.5676473,215.93,215.9,14.14540125]
[1734210135314,0.5676473,215.93,215.92,14.14540125]
[1734210136506,0.5676473,215.93,215.91,14.14540125]
[1734210136713,0.5676473,215.93,215.91,0.12549]
[1734210137031,0.5676473,215.93,215.88,14.14540125]
[1734210137194,0.5676473,215.93,215.89,0.12549]
[1734210137395,0.5676473,215.93,215.89,14.27089125]
[1734210137908,0.5676473,215.93,215.89,0.12549]
[1734210139129,0.5676473,215.93,215.89,14.27089125]
[1734210139633,0.5676473,215.93,215.87,14.14540125]
[1734210139915,0.5676473,215.93,215.86,14.14540125]
[1734210140328,0.5676473,215.93,215.88,14.27089125]
[1734210140710,0.5676473,215.93,215.88,14.14540125]
[1734210140910,0.5676473,215.93,215.86,14.14540125]
[1734210142741,0.5676473,215.93,215.84,14.27089125]
[1734210142947,7.34656326,215.92,215.84,14.27089125]
[1734210143315,7.34656326,215.92,215.83,21.44907647]
[1734210143547,23.776884,215.91,215.8,14.14540125]
[1734210143748,0.86866031,215.9,215.81,30.0]
[1734210144044,0.86866031,215.9,215.8,14.14540125]
[1734210144045,20.0,215.88,215.8,14.14540125]
[1734210144614,20.0,215.88,215.79,14.14540125]
[1734210145209,20.0,215.88,215.8,0.12549]
[1734210146126,20.0,215.88,215.81,14.14540125]
[1734210147636,0.86865117,215.87,215.75,0.69493106]
[1734210147829,6.4781,215.85,215.75,14.14540125]
[1734210148150,0.86885415,215.84,215.75,14.14540125]
[1734210148340,0.86885415,215.84,215.76,14.14540125]
[1734210148664,7.34694725,215.85,215.78,14.14540125]
[1734210150044,7.34694725,215.85,215.77,14.14540125]
[1734210150420,6.4781,215.85,215.78,14.27089125]
[1734210150645,6.4781,215.85,215.79,14.14540125]
[1734210151239,7.34683027,215.9,215.82,14.27089125]
[1734210151546,6.4781,215.9,215.84,14.14540125]
[1734210151844,6.4781,215.9,215.83,14.14540125]
[1734210152048,0.86854282,215.89,215.81,0.12549]
[1734210152344,0.86854282,215.89,215.82,14.14540125]
[1734210153745,0.86854282,215.89,215.81,0.12549]
[1734210161543,6.4781,215.9,215.83,9.06360344]
[1734210161745,6.4781,215.9,215.84,9.06360344]
[1734210162557,6.4781,215.9,215.76,21.6056]
[1734210162558,6.4781,215.9,215.86,9.06360344]
[1734210162935,6.4781,215.9,215.85,9.06360344]
[1734210163134,1.6595,215.91,215.86,0.12549]
[1734210163745,1.43612817,215.93,215.86,0.12549]
[1734210164459,0.5676473,215.93,215.86,0.12549]
[1734210166174,0.5676473,215.93,215.86,14.15582982]
[1734210166457,0.5676473,215.93,215.79,30.0]
[1734210166458,0.5676473,215.93,215.87,15.10154956]
[1734210166841,0.5676473,215.93,215.87,14.40680982]
[1734210169658,0.5676473,215.93,215.89,0.12549]
[1734210169845,0.5676473,215.93,215.89,0.25098]
[1734210172373,0.5676473,215.93,215.9,14.15582982]
[1734210172542,0.5676473,215.93,215.91,0.12549]
[1734210173339,0.5676473,215.93,215.9,0.25098]
[1734210173540,0.5676473,215.93,215.9,0.12549]
[1734210174349,0.5676473,215.93,215.89,0.25098]
[1734210177963,0.5676473,215.93,215.85,14.15582982]
[1734210178481,0.5676473,215.93,215.85,0.12549]
[1734210179566,0.5676473,215.93,215.85,0.25098]
[1734210180150,0.5676473,215.93,215.81,14.15582982]
[1734210180351,0.5676473,215.93,215.79,20.59385276]
[1734210180352,7.16136681,215.92,215.79,20.59385276]
[1734210180553,23.776884,215.91,215.8,30.0]
[1734210180879,1.5879,215.89,215.77,14.15582982]
[1734210181181,20.86873523,215.88,215.76,14.15582982]
[1734210181896,0.86873523,215.88,215.77,14.85083001]
[1734210182095,0.86863348,215.88,215.78,14.15582982]
[1734210182788,0.86863348,215.88,215.79,0.25098]
[1734210185353,0.86863348,215.88,215.76,14.15582982]
[1734210185582,0.86863348,215.88,215.73,148.85582982]
[1734210185755,20.86863348,215.88,215.74,30.0]
[1734210185956,20.86863348,215.88,215.75,0.12549]
[1734210186155,6.2794,215.87,215.74,30.0]
[1734210186365,0.86890522,215.86,215.74,30.0]
[1734210186563,0.86890522,215.86,215.71,14.15582982]
[1734210186564,20.0,215.84,215.71,14.15582982]
[1734210186774,0.86892589,215.83,215.71,14.15582982]
[1734210186976,0.86891027,215.86,215.74,14.15582982]
[1734210187184,0.86891027,215.86,215.75,0.12549]
[1734210187973,0.86891027,215.86,215.72,0.69512822]
[1734210188178,0.86891027,215.86,215.72,9.06824832]
[1734210188376,0.86891027,215.86,215.73,0.12549]
[1734210188576,20.0,215.84,215.7,9.76336759]
[1734210188898,0.86892661,215.83,215.7,9.76336759]
[1734210189877,0.86892661,215.83,215.71,9.06824832]
[1734210190195,0.86892661,215.83,215.71,9.31922832]
[1734210194504,0.86892661,215.83,215.75,0.25098]
[1734210194809,6.2794,215.87,215.78,0.25098]
[1734210194810,0.86883058,215.86,215.78,0.25098]
[1734210195107,6.2794,215.87,215.78,10.01416892]
[1734210196894,6.2794,215.87,215.81,0.25098]
[1734210197077,6.2794,215.87,215.83,0.12549]
[1734210197873,1.5879,215.89,215.83,0.12549]
[1734210198100,1.5879,215.89,215.83,30.12549]
[1734210202211,0.86859675,215.88,215.83,30.0]
[1734210204189,0.86859675,215.88,215.77,0.69496712]
[1734210204190,0.86859675,215.88,215.78,30.0]
[1734210204402,0.86859675,215.88,215.79,0.12549]
[1734210204911,0.86859675,215.88,215.78,30.0]
[1734210205123,6.3219,215.87,215.78,30.0]
[1734210205313,20.0,215.84,215.78,30.0]
[1734210205485,0.86889929,215.83,215.78,30.0]
[1734210206179,0.86889929,215.83,215.72,30.0]
[1734210206383,0.86889929,215.83,215.73,0.12549]
[1734210207200,0.86889929,215.83,215.75,0.12549]
[1734210207810,0.86889929,215.83,215.74,30.0]
[1734210211014,1.5589,215.82,215.74,30.0]
[1734210211226,0.8689267,215.81,215.74,30.0]
[1734210211389,6.3219,215.8,215.74,30.0]
[1734210211700,0.86903471,215.79,215.74,30.0]
[1734210211898,0.86903471,215.79,215.69,0.25098]
[1734210212208,0.86903471,215.79,215.69,30.25098]
[1734210218403,0.86903471,215.79,215.71,0.12549]
[1734210218604,0.86903471,215.79,215.71,30.12549]
[1734210220717,0.86903471,215.79,215.72,14.29973031]
[1734210221026,1.5589,215.82,215.77,14.17424031]
[1734210221202,6.4197,215.85,215.78,14.17424031]
[1734210221730,6.4197,215.85,215.77,14.17424031]
[1734210221916,0.86878405,215.84,215.77,14.17424031]
[1734210222930,6.4197,215.85,215.8,14.17424031]
[1734210223222,6.3441,215.91,215.83,14.17424031]
[1734210223429,7.21265255,215.91,215.83,14.17424031]
[1734210223802,7.21265255,215.91,215.83,44.17424031]
[1734210224996,7.21265255,215.91,215.83,30.0]
[1734210232432,7.21265255,215.91,215.81,0.12549]
[1734210232609,7.21265255,215.91,215.81,30.12549]
[1734210235414,7.21265255,215.91,215.81,39.18886214]
[1734210235613,7.21265255,215.91,215.81,9.18886214]
[1734210237021,7.21265255,215.91,215.81,0.12549]
[1734210239239,7.21265255,215.91,215.81,9.18886214]
[1734210239438,7.21265255,215.91,215.78,20.69488011]
[1734210239632,7.21265255,215.91,215.77,0.25098]
[1734210239829,7.21265255,215.91,215.77,39.31435214]
[1734210240536,7.21265255,215.91,215.77,9.31435214]
[1734210240721,7.21265255,215.91,215.79,0.12549]
[1734210241331,7.21265255,215.91,215.79,9.31435214]
[1734210241537,7.21265255,215.91,215.82,9.06337214]
[1734210242741,6.3441,215.91,215.83,9.18886214]
[1734210243078,6.3441,215.91,215.85,0.12549]
[1734210243943,6.3441,215.91,215.87,0.12549]
[1734210244156,0.5676473,215.93,215.87,0.12549]
[1734210244842,0.5676473,215.93,215.87,9.18886214]
[1734210245222,0.5676473,215.93,215.87,0.12549]
[1734210247050,0.5676473,215.93,215.89,9.06337214]
[1734210247425,0.5676473,215.93,215.88,9.06337214]
[1734210247646,0.5676473,215.93,215.87,0.12549]
[1734210248119,0.5676473,215.93,215.86,0.12549]
[1734210248322,0.5676473,215.93,215.86,9.18886214]
[1734210249856,0.5676473,215.93,215.87,9.06337214]
[1734210251134,0.5676473,215.93,215.89,9.06337214]
[1734210252036,0.5676473,215.93,215.89,0.12549]
[1734210253136,0.5676473,215.93,215.89,9.18886214]
[1734210254047,0.5676473,215.93,215.92,9.06337214]
[1734210254234,0.5676473,215.93,215.92,9.31435214]
[1734210255446,0.5676473,215.93,215.92,0.12549]
[1734210255757,0.5676473,215.93,215.92,10.00880259]
[1734210257044,0.5676473,215.93,215.92,39.06337214]
[1734210257253,0.5676473,215.93,215.92,39.18886214]
[1734210257561,0.5676473,215.93,215.92,30.12549]
[1734210257762,0.5676473,215.93,215.92,30.0]
[1734210257959,0.5676473,215.93,215.87,9.06337214]
[1734210258152,0.5676473,215.93,215.88,30.0]
[1734210258845,0.5676473,215.93,215.87,9.06337214]
[1734210259859,0.5676473,215.93,215.88,0.12549]
[1734210261843,0.5676473,215.93,215.87,9.06337214]
[1734210262049,0.5676473,215.93,215.86,0.12549]
[1734210262362,0.5676473,215.93,215.81,6.2176]
[1734210262363,0.5676473,215.93,215.79,7.03050638]
[1734210262541,0.86851641,215.92,215.82,9.06337214]
[1734210262941,0.86851641,215.92,215.83,9.06337214]
[1734210263753,0.86851641,215.92,215.84,0.12549]
[1734210264261,0.86851641,215.92,215.83,0.12549]
[1734210267363,0.86851641,215.92,215.83,9.18886214]
[1734210269145,1.43618597,215.93,215.85,9.06337214]
[1734210269364,0.5676473,215.93,215.86,9.06337214]
[1734210271575,0.5676473,215.93,215.84,9.06337214]
[1734210271746,0.5676473,215.93,215.85,0.12549]
[1734210272348,0.5676473,215.93,215.86,9.06337214]
[1734210272875,0.5676473,215.93,215.85,9.18886214]
[1734210273972,0.5676473,215.93,215.88,9.06337214]
[1734210274772,0.5676473,215.93,215.87,9.06337214]
[1734210277367,0.5676473,215.93,215.89,9.06337214]
[1734210277566,0.5676473,215.93,215.9,9.06337214]
[1734210278372,0.5676473,215.93,215.89,9.06337214]
[1734210278574,0.5676473,215.93,215.9,0.12549]
[1734210279353,0.5676473,215.93,215.88,9.18886214]
[1734210279564,0.5676473,215.93,215.88,0.12549]
[1734210279766,0.5676473,215.93,215.84,0.12549]
[1734210279975,0.5676473,215.93,215.85,0.12549]
[1734210280349,0.5676473,215.93,215.85,9.06337214]
[1734210280667,0.5676473,215.93,215.86,0.12549]
[1734210281071,0.5676473,215.93,215.85,0.12549]
[1734210281577,0.5676473,215.93,215.85,9.18886214]
[1734210281767,0.5676473,215.93,215.86,0.12549]
[1734210282654,0.5676473,215.93,215.85,0.12549]
[1734210283275,0.86845258,215.92,215.85,0.12549]
[1734210283467,1.43612737,215.93,215.85,9.18886214]
[1734210286584,0.5676473,215.93,215.88,9.06337214]
[1734210286880,0.5676473,215.93,215.87,0.12549]
[1734210288165,0.5676473,215.93,215.87,9.06337214]
[1734210288367,0.5676473,215.93,215.88,9.06337214]
[1734210288568,0.5676473,215.93,215.89,0.12549]
[1734210289384,0.5676473,215.93,215.88,0.12549]
[1734210291359,0.5676473,215.93,215.88,9.18886214]
[1734210291562,0.5676473,215.93,215.89,9.06337214]
[1734210292580,0.5676473,215.93,215.9,0.12549]
[1734210295615,0.5676473,215.93,215.9,9.31435214]
[1734210295764,0.5676473,215.93,215.92,9.18886214]
[1734210296068,0.5676473,215.93,215.92,9.31435214]
[1734210296669,0.5676473,215.93,215.92,10.00879179]
[1734210297881,0.5676473,215.93,215.92,9.31435214]
[1734210299869,0.5676473,215.93,215.92,33.09123614]
[1734210300675,0.5676473,215.93,215.92,33.78557334]
[1734210301699,0.5676473,215.93,215.92,20.25098]
[1734210301995,0.5676473,215.93,215.92,29.31435214]
[1734210302478,0.5676473,215.93,215.92,53.09123614]
[1734210302869,0.5676473,215.93,215.92,53.78563381]
[1734210303892,0.5676473,215.93,215.92,53.09123614]
[1734210304575,0.5676473,215.93,215.92,29.31435214]
[1734210304780,0.5676473,215.93,215.92,0.12549]
[1734210304981,0.5676473,215.93,215.92,9.18886214]
[1734210305169,0.5676473,215.93,215.92,9.06337214]
[1734210306686,0.5676473,215.93,215.92,9.18886214]
[1734210307400,0.5676473,215.93,215.92,0.12549]
[1734210307865,0.5676473,215.93,215.88,0.69455983]
[1734210308066,0.5676473,215.93,215.88,9.06337214]
[1734210308465,0.5676473,215.93,215.89,9.06337214]
[1734210308985,0.5676473,215.93,215.88,9.06337214]
[1734210309678,0.5676473,215.93,215.89,0.12549]
[1734210311167,0.5676473,215.93,215.92,9.31435214]
[1734210311396,0.5676473,215.93,215.92,33.09123614]
[1734210311772,0.5676473,215.93,215.92,0.12549]
[1734210312589,0.5676473,215.93,215.92,9.18886214]
[1734210312796,0.5676473,215.93,215.92,9.31435214]
[1734210318385,0.5676473,215.93,215.92,9.18886214]
[1734210319186,0.5676473,215.93,215.92,9.31435214]
[1734210321079,0.5676473,215.93,215.92,33.09123614]
[1734210321274,0.5676473,215.93,215.92,70.03910267]
[1734210321714,13.7270835,216.08,215.96,0.25098]
[1734210321902,6.6579,216.08,216.03,0.12549]
[1734210323621,6.6579,216.08,216.02,0.12549]
[1734210323792,6.6579,216.08,215.99,9.06337214]
[1734210324108,7.52567823,216.08,216.0,0.12549]
[1734210325010,7.6368308,216.14,216.03,20.0]
[1734210325218,0.8678473,216.12,216.03,9.18886214]
[1734210325376,0.8678473,216.12,216.03,0.12549]
[1734210325886,1.1568,216.11,216.01,0.12549]
[1734210326090,0.86784711,216.1,216.0,0.12549]
[1734210327219,0.86784711,216.1,215.94,7.61264968]
[1734210327220,20.0,216.08,215.94,1.6486]
[1734210327385,0.86798855,216.07,215.94,1.6486]
[1734210327580,6.0741,216.06,215.95,9.06337214]
[1734210327779,0.86801931,216.05,215.95,9.06337214]
[1734210328714,0.86801931,216.05,215.96,0.12549]
[1734210329085,0.86801931,216.05,215.96,9.18886214]
[1734210330601,1.5005,216.04,215.95,0.25098]
[1734210330800,2.02523132,216.03,215.91,20.69440475]
[1734210331007,22.02523132,216.03,215.91,20.0]
[1734210331421,23.776884,216.02,215.9,9.06337214]
[1734210331588,0.86824624,216.01,215.9,9.06337214]
[1734210333387,0.86824624,216.01,215.91,0.12549]
[1734210333589,0.86824624,216.01,215.92,9.06337214]
[1734210334089,0.86824624,216.01,215.91,9.06337214]
[1734210336510,0.86824624,216.01,215.94,9.06337214]
[1734210337910,0.86824624,216.01,215.92,9.06337214]
[1734210338308,20.86824624,216.01,215.93,0.12549]
[1734210339012,1.1574,216.0,215.9,9.06337214]
[1734210339212,7.08580849,215.99,215.89,9.06337214]
[1734210341320,7.08580849,215.99,215.9,9.06337214]
[1734210341613,7.08580849,215.99,215.87,0.9456316]
[1734210341821,7.08580849,215.99,215.9,9.06337214]
[1734210342319,7.08580849,215.99,215.88,9.06337214]
[1734210342505,1.5851,215.97,215.88,9.06337214]
[1734210342710,0.86838986,215.96,215.88,9.06337214]